bitfinex/quotes_BTCUSD_20250826
["timestamp","ask_amount","ask_price","bid_price","bid_amount"]
[1756170439179,1.10655294,109780.0,109770.0,0.00014325]
[1756170439412,1.62293577,109780.0,109770.0,0.00014325]
[1756170439638,4.9678324,109780.0,109770.0,1e-08]
[1756170439853,4.84471298,109780.0,109770.0,1e-08]
[1756170440069,5.00038101,109780.0,109770.0,1e-08]
[1756170440519,5.04920392,109780.0,109770.0,1e-08]
[1756170440729,4.50507919,109780.0,109770.0,1e-08]
[1756170440937,5.04920392,109780.0,109770.0,1e-08]
[1756170441167,5.00038101,109780.0,109770.0,1e-08]
[1756170441577,5.0246727,109780.0,109770.0,1e-08]
[1756170441787,5.04361663,109780.0,109770.0,1e-08]
[1756170442003,5.05197394,109780.0,109770.0,1e-08]
[1756170442420,5.01942403,109780.0,109770.0,1e-08]
[1756170442846,5.02768095,109780.0,109770.0,1e-08]
[1756170443080,5.29550386,109780.0,109770.0,1e-08]
[1756170443313,4.91676095,109780.0,109770.0,1e-08]
[1756170443527,5.22153156,109780.0,109770.0,1e-08]
[1756170443733,4.98837138,109780.0,109770.0,1e-08]
[1756170443944,5.05845138,109780.0,109770.0,1e-08]
[1756170444379,0.34389152,109780.0,109770.0,1e-08]
[1756170444598,0.75740162,109780.0,109770.0,0.18728915]
[1756170444821,0.18216595,109790.0,109770.0,0.078387]
[1756170445035,0.7274416,109780.0,109770.0,0.078387]
[1756170445220,0.54412473,109780.0,109770.0,0.26058614]
[1756170445902,0.54412473,109790.0,109780.0,0.18217123]
[1756170446115,0.18214936,109800.0,109790.0,0.18216595]
[1756170446319,0.72627409,109800.0,109790.0,0.18735595]
[1756170446804,0.18216987,109790.0,109770.0,0.43859614]
[1756170447014,0.29695439,109800.0,109790.0,0.18216595]
[1756170447219,0.01425228,109800.0,109790.0,0.26065294]
[1756170447852,0.01538661,109800.0,109790.0,0.26065294]
[1756170448308,0.55951134,109800.0,109790.0,0.26065294]
[1756170448519,0.01425228,109800.0,109790.0,0.44053294]
[1756170448931,0.55951134,109800.0,109790.0,0.44053294]
[1756170449137,0.55837701,109800.0,109790.0,0.44053294]
[1756170449433,0.63242803,109800.0,109790.0,0.18216595]
[1756170449641,0.63242803,109800.0,109780.0,0.18540196]
[1756170449849,0.72742501,109790.0,109780.0,0.18306]
[1756170450069,0.55837701,109800.0,109790.0,0.18216595]
[1756170450283,0.01425228,109800.0,109790.0,0.36719595]
[1756170450741,0.18216785,109790.0,109770.0,0.18219915]
[1756170450954,0.7274416,109780.0,109770.0,1e-08]
[1756170451164,0.07008998,109800.0,109790.0,0.18216595]
[1756170451382,0.7416607,109800.0,109780.0,0.18539818]
[1756170451590,0.72742501,109790.0,109780.0,0.18540169]
[1756170451822,0.18216595,109790.0,109780.0,0.00322]
[1756170452032,0.92032655,109800.0,109780.0,0.00519]
[1756170452231,0.48449023,109800.0,109790.0,0.18216595]
[1756170452443,1.02861496,109800.0,109790.0,0.18216595]
[1756170452858,0.66666542,109800.0,109790.0,0.18216595]
[1756170453089,0.01425228,109800.0,109790.0,0.18735595]
[1756170453728,0.72388473,109820.0,109810.0,0.18213277]
[1756170453933,0.74917344,109820.0,109810.0,0.18213277]
[1756170454371,0.93326973,109820.0,109800.0,0.18213527]
[1756170454577,0.1832671,109810.0,109800.0,0.18213527]
[1756170454776,0.18213277,109810.0,109800.0,0.18213527]
[1756170454953,0.18227594,109810.0,109800.0,0.18213527]
[1756170455339,0.19071358,109810.0,109800.0,0.18213527]
[1756170455761,0.19071358,109810.0,109800.0,0.18732527]
[1756170455762,0.00858081,109810.0,109800.0,0.18732527]
[1756170455942,0.00014317,109810.0,109800.0,0.18732527]
[1756170456549,0.00014317,109810.0,109800.0,0.36704527]
[1756170456768,0.0012775,109810.0,109800.0,0.36704527]
[1756170456973,0.01439253,109810.0,109800.0,0.36704527]
[1756170457450,0.8412096,109810.0,109800.0,0.17972]
[1756170457663,0.84007527,109810.0,109790.0,0.52342797]
[1756170458073,0.18214936,109800.0,109790.0,0.25546595]
[1756170458290,0.18218254,109780.0,109770.0,0.0733]
[1756170458501,0.74322727,109780.0,109760.0,0.36511528]
[1756170458708,0.01692,109780.0,109770.0,0.18738914]
[1756170459328,0.03117326,109780.0,109770.0,0.18738914]
[1756170459546,0.03117326,109780.0,109770.0,0.18416914]
[1756170459723,0.03230759,109780.0,109770.0,0.18738914]
[1756170460369,0.25221087,109780.0,109770.0,0.18738914]
[1756170460577,0.03118547,109780.0,109770.0,0.35214815]
[1756170460787,0.01425326,109780.0,109770.0,0.35214815]
[1756170461836,0.01425326,109780.0,109770.0,0.35218815]
[1756170462243,0.01425326,109780.0,109770.0,0.36963717]
[1756170462462,0.01425326,109780.0,109770.0,0.46108246]
[1756170462890,0.01425326,109780.0,109770.0,0.36963717]
[1756170463123,0.01425326,109780.0,109770.0,0.53178815]
[1756170463346,0.74367486,109780.0,109770.0,0.17964]
[1756170463567,0.72828727,109780.0,109770.0,4e-05]
[1756170463790,0.83648729,109780.0,109770.0,4e-05]
[1756170464024,1.1936477,109780.0,109770.0,4e-05]
[1756170464254,1.53999807,109780.0,109770.0,4e-05]
[1756170464471,0.94105853,109780.0,109770.0,0.18223914]
[1756170464671,1.00655469,109780.0,109770.0,4e-05]
[1756170464864,0.82239277,109780.0,109770.0,0.18223914]
[1756170465111,1.00022432,109780.0,109770.0,0.18223914]
[1756170465324,0.81804178,109780.0,109770.0,0.18223914]
[1756170465536,0.11684996,109780.0,109770.0,0.18223914]
[1756170465799,0.11798429,109780.0,109770.0,0.18223914]
[1756170466020,0.02540467,109780.0,109770.0,0.18742914]
[1756170466237,0.026539,109780.0,109770.0,0.18742914]
[1756170466459,0.27983392,109780.0,109770.0,4e-05]
[1756170466671,0.02540467,109780.0,109770.0,0.18742914]
[1756170466890,0.03965927,109780.0,109770.0,0.18742914]
[1756170467107,0.07659818,109780.0,109770.0,0.18742914]
[1756170467328,0.07659818,109780.0,109770.0,0.00201]
[1756170467555,0.07857818,109780.0,109770.0,0.18223914]
[1756170467771,0.62072291,109780.0,109770.0,0.18223914]
[1756170467990,0.80177112,109780.0,109770.0,0.18223914]
[1756170468465,0.80177112,109780.0,109770.0,4e-05]
[1756170468466,0.80375112,109780.0,109770.0,4e-05]
[1756170468688,0.80375112,109780.0,109770.0,0.18223914]
[1756170468912,0.585764,109780.0,109770.0,0.18223914]
[1756170469140,0.76794654,109780.0,109770.0,0.18223914]
[1756170469378,0.77012654,109780.0,109770.0,4e-05]
[1756170469622,0.83707892,109780.0,109770.0,4e-05]
[1756170469849,0.90311954,109780.0,109770.0,4e-05]
[1756170470071,1.10585889,109780.0,109770.0,4e-05]
[1756170470545,0.65077106,109780.0,109770.0,0.18223914]
[1756170470816,0.8371136,109780.0,109770.0,4e-05]
[1756170471062,1.30302033,109780.0,109770.0,4e-05]
[1756170471312,4.62843935,109780.0,109770.0,4e-05]
[1756170471562,4.79271844,109780.0,109770.0,4e-05]
[1756170471808,4.84154135,109780.0,109770.0,4e-05]
[1756170472031,4.86894935,109780.0,109770.0,4e-05]
[1756170472503,4.83640074,109780.0,109770.0,4e-05]
[1756170472750,1.33377289,109770.0,109760.0,4e-05]
[1756170472969,4.96514991,109770.0,109760.0,4e-05]
[1756170473204,5.01318702,109770.0,109760.0,4e-05]
[1756170473429,5.04573387,109770.0,109760.0,4e-05]
[1756170474120,5.04587694,109770.0,109760.0,4e-05]
[1756170474554,4.86646887,109770.0,109760.0,4e-05]
[1756170474779,4.50174414,109770.0,109760.0,4e-05]
[1756170475003,5.04586887,109770.0,109760.0,4e-05]
[1756170475250,5.06012775,109770.0,109760.0,4e-05]
[1756170475458,4.46718011,109770.0,109760.0,4e-05]
[1756170475662,5.01130484,109770.0,109760.0,4e-05]
[1756170476069,5.01130495,109770.0,109760.0,4e-05]
[1756170476286,5.06012786,109770.0,109760.0,4e-05]
[1756170476494,5.01130495,109770.0,109760.0,4e-05]
[1756170476927,4.72973495,109770.0,109760.0,4e-05]
[1756170477188,4.76608518,109770.0,109760.0,4e-05]
[1756170477418,4.69808715,109770.0,109760.0,4e-05]
[1756170477634,4.51872715,109770.0,109760.0,4e-05]
[1756170477842,1.54011715,109770.0,109760.0,4e-05]
[1756170478069,0.95067715,109770.0,109760.0,0.00521]
[1756170478281,1.03859186,109770.0,109760.0,0.00521]
[1756170478517,1.01904691,109770.0,109760.0,0.00521]
[1756170478840,0.29556218,109770.0,109760.0,0.00521]
[1756170479064,0.47488218,109770.0,109760.0,0.18742574]
[1756170479263,0.56635255,109770.0,109760.0,0.18742574]
[1756170479467,0.29558726,109770.0,109760.0,0.18742574]
[1756170479667,0.47491462,109770.0,109760.0,0.18742574]
[1756170479855,0.47491462,109770.0,109760.0,0.00216]
[1756170480267,1.02104935,109770.0,109760.0,4e-05]
[1756170480469,1.11249464,109770.0,109760.0,4e-05]
[1756170480693,0.58591776,109770.0,109760.0,4e-05]
[1756170480931,1.13004249,109770.0,109760.0,4e-05]
[1756170481126,0.95072249,109770.0,109760.0,0.00216]
[1756170481338,0.04623563,109770.0,109760.0,0.18742574]
[1756170481574,0.02674435,109770.0,109760.0,0.18742574]
[1756170481783,0.02561002,109770.0,109760.0,0.18742574]
[1756170481992,0.01712104,109770.0,109760.0,0.18742574]
[1756170482427,0.01712104,109770.0,109760.0,0.35856026]
[1756170482650,0.00014307,109770.0,109760.0,0.90268499]
[1756170482858,0.00014307,109770.0,109760.0,0.35856026]
[1756170483062,0.00014307,109770.0,109760.0,0.75856026]
[1756170483940,0.00014307,109770.0,109760.0,0.93780026]
[1756170484151,0.00014307,109770.0,109760.0,0.75856026]
[1756170484368,0.00014307,109770.0,109760.0,0.93780026]
[1756170485566,0.00014307,109770.0,109760.0,1.48192499]
[1756170485771,0.01425209,109790.0,109780.0,0.17310254]
[1756170486196,0.01425209,109790.0,109780.0,0.51596456]
[1756170486427,0.01425209,109790.0,109780.0,0.24835254]
[1756170486559,0.01538642,109790.0,109780.0,0.42751254]
[1756170486793,0.19755237,109790.0,109780.0,0.24835254]
[1756170487002,0.21341344,109790.0,109780.0,0.42751254]
[1756170487207,0.21341344,109790.0,109780.0,0.4884823]
[1756170487208,0.03124749,109790.0,109780.0,0.4884823]
[1756170487423,0.19641804,109790.0,109780.0,0.18218254]
[1756170487646,0.18218254,109780.0,109770.0,0.18523507]
[1756170487855,0.18218254,109780.0,109760.0,0.83454574]
[1756170488069,0.00113433,109770.0,109760.0,0.83149574]
[1756170488336,0.18331687,109780.0,109760.0,0.83361574]
[1756170488538,0.00113433,109770.0,109760.0,0.25445574]
[1756170488750,0.00113433,109770.0,109760.0,0.43662574]
[1756170489178,0.01538862,109770.0,109760.0,0.43662574]
[1756170489609,0.01425429,109770.0,109760.0,0.43662574]
[1756170489874,0.01538862,109770.0,109760.0,0.43662574]
[1756170490542,0.01425429,109770.0,109760.0,0.43662574]
[1756170490745,0.01425429,109770.0,109760.0,0.5908847]
[1756170490954,0.01425429,109770.0,109760.0,0.52808776]
[1756170491096,0.01425429,109770.0,109760.0,0.54553678]
[1756170491319,0.00113433,109800.0,109790.0,0.18216595]
[1756170491550,0.20028598,109800.0,109790.0,0.17904]
[1756170491753,0.18216595,109790.0,109780.0,0.36122254]
[1756170491964,0.79480817,109790.0,109780.0,0.17904]
[1756170492122,0.18218254,109780.0,109770.0,0.36121185]
[1756170492504,0.18218254,109780.0,109770.0,0.17904]
[1756170492505,0.81775256,109780.0,109770.0,0.17904]
[1756170492685,0.18219914,109770.0,109760.0,0.25233574]
[1756170492836,0.18219914,109770.0,109760.0,0.43133574]
[1756170493036,0.002,109790.0,109780.0,0.18218254]
[1756170493238,0.53342185,109810.0,109790.0,0.18216595]
[1756170493239,1.25436658,109810.0,109790.0,0.18216595]
[1756170493464,0.00113433,109800.0,109790.0,0.18521595]
[1756170493692,0.0181394,109800.0,109790.0,0.18533595]
[1756170494518,0.32347215,109810.0,109800.0,0.18214936]
[1756170494721,0.18214936,109800.0,109790.0,0.18216595]
[1756170494927,0.09144529,109800.0,109790.0,0.18216595]
[1756170495141,0.27557465,109800.0,109790.0,0.18216595]
[1756170495342,0.09144529,109800.0,109790.0,0.18216595]
[1756170495552,1.05580668,109810.0,109790.0,0.18733595]
[1756170495774,0.18214936,109800.0,109790.0,0.18116595]
[1756170496462,0.19740106,109800.0,109790.0,0.18116595]
[1756170496704,0.19740106,109800.0,109780.0,0.18218254]
[1756170496921,0.18330028,109790.0,109780.0,0.18523254]
[1756170497138,0.72629068,109790.0,109780.0,0.18218254]
[1756170497346,0.18219914,109770.0,109760.0,0.00309]
[1756170497597,0.54412473,109770.0,109760.0,0.18530574]
[1756170497823,0.18219914,109770.0,109760.0,0.18530574]
[1756170498025,0.54412473,109780.0,109770.0,0.18219914]
[1756170498248,0.7433074,109780.0,109770.0,0.18219914]
[1756170498467,0.74330737,109780.0,109770.0,0.18219914]
[1756170498679,0.74056159,109780.0,109770.0,0.18219914]
[1756170499085,0.01425432,109780.0,109770.0,0.36624914]
[1756170499752,0.01538865,109780.0,109770.0,0.36624914]
[1756170499967,0.01425432,109780.0,109770.0,0.36624914]
[1756170500666,0.01425432,109780.0,109770.0,0.36824914]
[1756170500880,0.01425432,109780.0,109770.0,0.52979116]
[1756170501085,0.01425432,109780.0,109770.0,0.61844487]
[1756170501297,0.01425432,109780.0,109770.0,0.68974186]
[1756170501518,0.18213378,109810.0,109800.0,0.18214936]
[1756170501728,0.18227695,109810.0,109800.0,0.36094936]
[1756170501938,0.27372224,109810.0,109800.0,0.36094936]
[1756170502150,0.28797327,109810.0,109800.0,0.36094936]
[1756170502372,0.19652798,109810.0,109800.0,0.36094936]
[1756170503033,0.19652697,109810.0,109800.0,0.1788]
[1756170503246,0.18214936,109800.0,109780.0,0.19431406]
[1756170503462,0.18214936,109800.0,109790.0,0.17876]
[1756170503681,0.27359465,109800.0,109790.0,0.18216595]
[1756170503888,0.27359465,109800.0,109790.0,0.36092595]
[1756170504082,0.27359465,109800.0,109790.0,0.36304595]
[1756170504658,0.27359465,109800.0,109790.0,0.36300595]
[1756170504855,0.27359465,109800.0,109790.0,0.36400595]
[1756170505060,0.09144529,109800.0,109790.0,0.18528595]
[1756170505261,0.09257962,109800.0,109790.0,0.36705595]
[1756170505554,0.00113433,109800.0,109790.0,0.36705595]
[1756170505802,0.72640067,109810.0,109800.0,0.18214936]
[1756170506005,0.18227594,109810.0,109790.0,0.36493595]
[1756170506224,0.18227594,109810.0,109800.0,0.18214936]
[1756170506392,0.74343832,109810.0,109800.0,0.18214936]
[1756170506608,0.83488361,109810.0,109790.0,0.36485595]
[1756170506758,0.00113433,109800.0,109790.0,0.36180595]
[1756170506971,0.00113433,109800.0,109790.0,0.36583595]
[1756170507421,0.54525906,109800.0,109790.0,0.36080595]
[1756170507636,0.63557002,109800.0,109790.0,0.36080595]
[1756170507908,0.18219914,109770.0,109760.0,0.0031]
[1756170508127,0.27361124,109800.0,109780.0,0.18217881]
[1756170508332,0.84968879,109800.0,109790.0,0.18216595]
[1756170508562,0.84329511,109800.0,109780.0,0.36383881]
[1756170508774,0.00113433,109790.0,109780.0,0.36383881]
[1756170508987,0.83197199,109800.0,109790.0,0.18216595]
[1756170509215,0.85755968,109800.0,109790.0,0.18216595]
[1756170509648,0.03985074,109800.0,109790.0,0.18413595]
[1756170509861,0.21346681,109800.0,109790.0,0.18719595]
[1756170510079,0.01425261,109800.0,109790.0,0.18719595]
[1756170510985,0.7425067,109800.0,109780.0,0.18217881]
[1756170511216,0.18330028,109790.0,109780.0,0.18217881]
[1756170511419,0.09144529,109790.0,109780.0,0.36069881]
[1756170511648,0.09257962,109790.0,109780.0,0.36069881]
[1756170511873,0.09257962,109790.0,109780.0,0.36266881]
[1756170512082,0.09257962,109790.0,109780.0,0.36572881]
[1756170512704,0.00113433,109790.0,109780.0,0.36572881]
[1756170512928,0.01538694,109800.0,109790.0,0.18216595]
[1756170513129,0.01820349,109800.0,109790.0,0.18719595]
[1756170513584,0.18216595,109790.0,109770.0,0.22398869]
[1756170513814,0.7294216,109780.0,109770.0,0.17848]
[1756170514030,0.01707163,109780.0,109770.0,0.18416914]
[1756170514266,0.28268469,109810.0,109790.0,0.18216595]
[1756170514493,0.28268469,109810.0,109800.0,0.18214936]
[1756170514494,0.9157666,109810.0,109800.0,0.18214936]
[1756170515390,0.7967188,109810.0,109790.0,0.36366595]
[1756170515658,0.01721061,109810.0,109800.0,0.18717936]
[1756170515865,0.02574418,109810.0,109800.0,0.18717936]
[1756170516315,0.02687836,109810.0,109800.0,0.18717936]
[1756170516518,0.02574351,109810.0,109800.0,0.18717936]
[1756170517056,0.00867632,109810.0,109800.0,0.18717936]
[1756170517270,0.00014317,109810.0,109800.0,0.18717936]
[1756170517481,0.01439332,109810.0,109800.0,0.60944961]
[1756170517691,0.01439332,109810.0,109800.0,0.63614703]
[1756170518581,0.01439332,109810.0,109800.0,1.03714703]
[1756170518790,0.01439332,109810.0,109800.0,1.03614703]
[1756170519004,0.01439332,109810.0,109800.0,0.9647904]
[1756170519217,0.43947025,109810.0,109800.0,0.45696138]
[1756170519468,0.62160302,109810.0,109800.0,0.17832]
[1756170519671,0.09476527,109810.0,109800.0,0.45696138]
[1756170519882,0.01439332,109810.0,109800.0,0.45696138]
[1756170520094,0.44060458,109810.0,109800.0,0.40637726]
[1756170520339,0.43947025,109810.0,109800.0,0.40837726]
[1756170520575,0.01439332,109810.0,109800.0,0.40637726]
[1756170520805,0.07655197,109810.0,109800.0,0.40637726]
[1756170521013,0.01439332,109810.0,109800.0,0.40737726]
[1756170521223,0.01439332,109810.0,109800.0,0.40637726]
[1756170521665,0.01439332,109810.0,109800.0,0.22909726]
[1756170521881,0.44060458,109810.0,109800.0,0.40729726]
[1756170522099,0.43947025,109810.0,109800.0,0.22909726]
[1756170522311,0.47842437,109810.0,109800.0,0.40226726]
[1756170522524,0.47842437,109810.0,109800.0,0.40729726]
[1756170522525,0.05334744,109810.0,109800.0,0.40729726]
[1756170522731,0.01552765,109810.0,109800.0,0.40729726]
[1756170523155,0.01439332,109810.0,109800.0,0.40729726]
[1756170523341,0.01552765,109810.0,109800.0,0.40729726]
[1756170523574,0.01552765,109810.0,109800.0,0.22909726]
[1756170523791,0.44060458,109810.0,109800.0,0.40419726]
[1756170524008,0.68230731,109810.0,109800.0,0.001]
[1756170524220,0.94961363,109810.0,109800.0,0.001]
[1756170524426,0.76927363,109810.0,109800.0,0.001]
[1756170524634,0.77145363,109810.0,109800.0,0.001]
[1756170524817,0.18216595,109790.0,109780.0,0.07008]
[1756170525057,0.64367441,109790.0,109770.0,0.2993789]
[1756170525273,0.64565441,109790.0,109780.0,0.17812]
[1756170525486,0.03643153,109790.0,109780.0,0.36533254]
[1756170525707,0.03643153,109790.0,109780.0,0.36227254]
[1756170525708,0.01041196,109790.0,109780.0,0.36227254]
[1756170525923,0.01041196,109790.0,109780.0,0.36030254]
[1756170526138,0.61963484,109790.0,109780.0,0.36026254]
[1756170526322,0.61652051,109790.0,109780.0,0.36026254]
[1756170526541,0.61652051,109790.0,109780.0,0.36223254]
[1756170526787,0.6963875,109790.0,109780.0,0.36026254]
[1756170527034,0.6983675,109790.0,109770.0,0.22502191]
[1756170527281,0.6983675,109790.0,109760.0,0.18225428]
[1756170527282,0.18219914,109770.0,109760.0,0.18225428]
[1756170527492,0.18219914,109770.0,109760.0,0.40208901]
[1756170527704,0.64580767,109770.0,109760.0,0.21987473]
[1756170528088,0.64580767,109770.0,109760.0,0.17808]
[1756170528320,0.66284078,109770.0,109760.0,4e-05]
[1756170528527,0.67709651,109770.0,109760.0,4e-05]
[1756170528942,1.26468385,109770.0,109760.0,4e-05]
[1756170529150,1.27958337,109770.0,109760.0,4e-05]
[1756170529856,1.27958337,109770.0,109760.0,0.00204]
[1756170530066,1.27958337,109770.0,109760.0,4e-05]
[1756170530307,1.10154337,109770.0,109760.0,4e-05]
[1756170530524,1.27954337,109770.0,109760.0,4e-05]
[1756170530989,0.67230644,109770.0,109760.0,4e-05]
[1756170531199,0.25003958,109770.0,109760.0,4e-05]
[1756170531388,0.72743074,109770.0,109760.0,4e-05]
[1756170531627,0.74443062,109770.0,109760.0,4e-05]
[1756170532047,0.73268989,109770.0,109760.0,4e-05]
[1756170532434,0.24956648,109770.0,109760.0,4e-05]
[1756170532640,0.67464341,109770.0,109760.0,4e-05]
[1756170533068,0.18218254,109780.0,109760.0,0.18728574]
[1756170533289,0.00113433,109770.0,109760.0,0.18422574]
[1756170533510,0.00113433,109770.0,109760.0,0.36218574]
[1756170533941,0.18333347,109770.0,109760.0,0.00507]
[1756170534158,0.68839536,109770.0,109760.0,0.17796]
[1756170534598,0.68633536,109770.0,109760.0,0.17796]
[1756170535247,0.42507693,109770.0,109760.0,0.36214574]
[1756170535457,0.78517947,109780.0,109770.0,0.18219914]
[1756170535672,0.28008239,109790.0,109780.0,0.18218254]
[1756170535673,0.27097555,109790.0,109780.0,0.18218254]
[1756170535908,0.61618549,109790.0,109780.0,0.18218254]
[1756170536112,0.36917682,109800.0,109790.0,0.18215728]
[1756170536113,0.18214936,109800.0,109790.0,0.18215728]
[1756170536749,0.20562207,109800.0,109790.0,0.18215728]
[1756170537171,0.18216595,109790.0,109770.0,0.32557613]
[1756170537371,0.6083938,109780.0,109770.0,0.24796]
[1756170537603,0.36004595,109790.0,109770.0,0.43545914]
[1756170537833,0.61644709,109800.0,109790.0,0.18216595]
[1756170538035,0.19122343,109820.0,109800.0,0.18214936]
[1756170538245,0.79428353,109820.0,109800.0,0.18214936]
[1756170538517,0.19751847,109810.0,109800.0,0.18214936]
[1756170538738,0.18214936,109800.0,109790.0,0.36004595]
[1756170538953,0.18214936,109800.0,109780.0,0.28275368]
[1756170539159,0.43437636,109800.0,109790.0,0.36000595]
[1756170539365,0.61652572,109800.0,109790.0,0.36000595]
[1756170539955,0.28782943,109810.0,109790.0,0.36210595]
[1756170540161,0.01425137,109810.0,109800.0,0.18214936]
[1756170540365,0.62146107,109810.0,109800.0,0.18214936]
[1756170540582,0.4483415,109810.0,109800.0,0.18424936]
[1756170540793,0.01425137,109810.0,109800.0,0.18744936]
[1756170541013,0.01425137,109810.0,109800.0,0.90221083]
[1756170541265,0.00014317,109820.0,109810.0,0.18213277]
[1756170541491,0.00014317,109820.0,109810.0,0.27889479]
[1756170541706,0.00014317,109820.0,109810.0,0.45669479]
[1756170541913,0.00014317,109820.0,109810.0,0.18213277]
[1756170542125,0.61051062,109820.0,109800.0,0.25222936]
[1756170542379,0.60834403,109810.0,109800.0,0.07008]
[1756170542599,0.18214936,109800.0,109780.0,0.30179227]
[1756170542845,0.42507693,109800.0,109790.0,0.35988595]
[1756170543048,0.70563339,109820.0,109800.0,0.18214936]
[1756170543256,0.6092497,109810.0,109790.0,0.18216326]
[1756170543465,0.70069499,109810.0,109790.0,0.35988326]
[1756170543687,0.70069499,109810.0,109790.0,0.18536326]
[1756170543892,0.70069499,109810.0,109800.0,0.18214936]
[1756170544098,0.6072097,109810.0,109800.0,0.18214936]
[1756170544308,0.6072097,109810.0,109800.0,0.004]
[1756170544527,0.6072097,109810.0,109800.0,0.18172]
[1756170544933,0.6092497,109810.0,109800.0,0.18172]
[1756170545166,0.42933447,109820.0,109800.0,0.36916936]
[1756170545356,0.00113433,109810.0,109800.0,0.36916936]
[1756170546491,0.00014317,109820.0,109810.0,0.18440942]
[1756170546705,0.01552686,109820.0,109810.0,0.18743277]
[1756170547130,0.01439253,109820.0,109810.0,0.27889479]
[1756170547344,0.01439253,109820.0,109810.0,0.42223178]
[1756170547777,0.01439253,109820.0,109810.0,0.46357672]
[1756170548862,0.00014317,109820.0,109810.0,0.57247103]
[1756170549062,0.00014317,109820.0,109810.0,0.57447103]
[1756170549292,0.00014317,109820.0,109810.0,1.00876427]
[1756170549924,0.01005723,109860.0,109830.0,0.19954862]
[1756170550162,0.61636922,109880.0,109860.0,0.18204988]
[1756170550408,0.18203331,109870.0,109860.0,0.35048988]
[1756170550607,0.60711024,109870.0,109860.0,0.35048988]
[1756170550851,0.60909024,109870.0,109860.0,0.17752]
[1756170551662,0.60893291,109870.0,109860.0,0.17752]
[1756170552310,0.60893291,109870.0,109860.0,0.17852]
[1756170552774,0.76213009,109870.0,109860.0,0.17848]
[1756170552998,0.77117821,109870.0,109860.0,0.001]
[1756170553217,0.18204988,109860.0,109850.0,0.17744]
[1756170553425,0.18206645,109850.0,109840.0,0.24748]
[1756170553646,0.18208302,109840.0,109830.0,0.07329699]
[1756170553863,0.60913995,109840.0,109830.0,0.25073699]
[1756170554123,0.60913995,109840.0,109830.0,0.07329699]
[1756170554341,0.1820996,109830.0,109820.0,0.07004]
[1756170554787,0.1820996,109830.0,109820.0,0.24744]
[1756170554998,0.19639207,109830.0,109820.0,0.42955619]
[1756170555613,0.623449,109830.0,109820.0,0.004]
[1756170555813,0.623449,109830.0,109820.0,0.18136]
[1756170556265,0.63769621,109830.0,109820.0,0.18136]
[1756170556478,0.21063928,109830.0,109820.0,0.36877619]
[1756170556692,0.19634681,109830.0,109820.0,0.36877619]
[1756170556880,0.01424721,109830.0,109820.0,0.19141619]
[1756170557129,0.01424721,109830.0,109820.0,0.88527514]
[1756170557353,0.01424721,109830.0,109820.0,0.46019821]
[1756170557551,0.01424721,109830.0,109820.0,0.5516435]
[1756170557807,0.25414527,109870.0,109850.0,0.18205895]
[1756170558050,0.18318421,109860.0,109850.0,0.35933895]
[1756170558272,0.18204988,109860.0,109850.0,0.35933895]
[1756170558486,0.18204988,109860.0,109850.0,0.35934645]
[1756170559134,0.19106725,109870.0,109860.0,0.18204988]
[1756170559339,0.00919127,109870.0,109860.0,0.18204988]
[1756170559548,0.0103256,109870.0,109860.0,0.18204988]
[1756170559770,0.18204988,109860.0,109850.0,0.18206645]
[1756170559984,0.18204988,109860.0,109850.0,0.35930645]
[1756170560209,0.61940151,109870.0,109850.0,0.18206645]
[1756170560450,0.00113433,109860.0,109850.0,0.18206645]
[1756170560698,0.00113433,109860.0,109850.0,0.18416645]
[1756170560909,0.00919127,109870.0,109860.0,0.18204988]
[1756170561117,0.0103256,109870.0,109860.0,0.18204988]
[1756170561522,0.02456847,109870.0,109860.0,0.18204988]
[1756170561892,0.02343414,109870.0,109860.0,0.18414988]
[1756170562091,0.02343414,109870.0,109860.0,0.18734988]
[1756170562092,0.02456847,109870.0,109860.0,0.18734988]
[1756170562305,0.01552035,109870.0,109860.0,0.18734988]
[1756170562509,0.01552035,109870.0,109860.0,0.18514988]
[1756170562674,0.00127748,109870.0,109860.0,0.18514988]
[1756170563392,0.19178698,109870.0,109860.0,0.001]
[1756170563618,0.61776958,109870.0,109860.0,0.17816]
[1756170563794,0.69896273,109870.0,109860.0,0.001]
[1756170563998,0.61776958,109870.0,109860.0,0.001]
[1756170564181,0.61776958,109870.0,109860.0,0.17812]
[1756170564182,0.62086958,109870.0,109860.0,0.17812]
[1756170564387,0.63782291,109870.0,109860.0,0.17812]
[1756170564581,0.70104408,109870.0,109860.0,0.17812]
[1756170564792,1.21816408,109870.0,109860.0,0.001]
[1756170564995,1.13885107,109870.0,109860.0,0.001]
[1756170565193,0.37377414,109870.0,109860.0,0.001]
[1756170565397,0.27922885,109870.0,109860.0,0.001]
[1756170565613,0.02761267,109870.0,109860.0,0.18304988]
[1756170565827,0.20874031,109870.0,109860.0,0.35912988]
[1756170566020,0.02557267,109870.0,109860.0,0.35912988]
[1756170566229,0.026707,109870.0,109860.0,0.35912988]
[1756170567067,0.026707,109870.0,109860.0,0.36416988]
[1756170567266,0.03981547,109870.0,109860.0,0.36416988]
[1756170567446,0.0409498,109870.0,109860.0,0.36416988]
[1756170568551,0.04098358,109870.0,109860.0,0.36516988]
[1756170569087,0.04098358,109870.0,109860.0,0.36210988]
[1756170569305,0.04301358,109870.0,109860.0,0.36012988]
[1756170569512,0.65012382,109870.0,109860.0,0.178]
[1756170569717,0.64898949,109870.0,109860.0,0.178]
[1756170570450,0.64898949,109870.0,109860.0,0.001]
[1756170570655,0.64898949,109870.0,109860.0,0.178]
[1756170571069,0.79968691,109870.0,109860.0,0.001]
[1756170571494,0.37785364,109870.0,109860.0,0.001]
[1756170571706,0.45708517,109870.0,109860.0,0.18304988]
[1756170571918,0.02563673,109870.0,109860.0,0.18204988]
[1756170572129,0.02677106,109870.0,109860.0,0.18204988]
[1756170572779,0.02563673,109870.0,109860.0,0.18708988]
[1756170573018,0.02677106,109870.0,109860.0,0.18708988]
[1756170573246,0.02677106,109870.0,109860.0,0.18402988]
[1756170574083,0.02677106,109870.0,109860.0,0.36090988]
[1756170574761,0.02677106,109870.0,109860.0,0.36396988]
[1756170574988,0.02563673,109870.0,109860.0,0.41857335]
[1756170575228,0.02563673,109870.0,109860.0,0.65337236]
[1756170575453,0.02563673,109870.0,109860.0,1.09589831]
[1756170575703,0.02563673,109870.0,109860.0,1.09689831]
[1756170575918,0.00864101,109870.0,109860.0,0.67182138]
[1756170576121,0.00864101,109870.0,109860.0,1.09689831]
[1756170576332,0.00014315,109870.0,109860.0,0.67174138]
[1756170576544,0.00865177,109870.0,109860.0,1.07174138]
[1756170576775,0.00014315,109870.0,109860.0,1.49581831]
[1756170577196,0.00014315,109870.0,109860.0,1.49981831]
[1756170577416,0.00014315,109870.0,109860.0,1.07474138]
[1756170580604,0.00014315,109870.0,109860.0,1.00236439]
[1756170580895,0.00014315,109870.0,109860.0,0.60236439]
[1756170581115,0.00014315,109870.0,109860.0,0.42564439]